fUST/lending_fUST_20260228
["ID","MTS","AMOUNT","RATE_DAILY","PERIOD"]
[406896969,1772267517428,-609.45,0.00016438,2]
[406896970,1772267517438,-500.0,0.00016438,2]
[406896971,1772267517447,-787.95,0.00016438,2]
[406896972,1772267517457,-1665.88,0.00016438,2]
[406896973,1772267517467,-571.43,0.00016438,2]
[406896974,1772267517477,-500.0,0.00016438,2]
[406896975,1772267517486,-7573.22,0.00016438,2]
[406896976,1772267517496,-554.61,0.00016438,2]
[406896977,1772267517505,-500.0,0.00016438,2]
[406896978,1772267517515,-500.0,0.00016438,2]
[406896979,1772267517524,-346.2045584,0.00016438,2]
[406896980,1772267517534,-500.0,0.00016438,2]
[406896981,1772267517544,-1743.64,0.00016438,2]
[406896982,1772267517555,-2006.98,0.00016438,2]
[406896983,1772267517566,-647.16,0.00016438,2]
[406896984,1772267517576,-2108.79,0.00016438,2]
[406896985,1772267517586,-597.77751495,0.00016438,2]
[406896986,1772267517595,-839.36,0.00016438,2]
[406896987,1772267517605,-878.12,0.00016438,2]
[406896988,1772267517615,-7180.71,0.00016438,2]
[406896989,1772267517625,-784.54,0.00016438,2]
[406896990,1772267517634,-696.62,0.00016438,2]
[406896991,1772267517644,-854.66,0.00016438,2]
[406896992,1772267517653,-1726.59,0.00016438,2]
[406896993,1772267517663,-500.0,0.00016438,2]
[406896994,1772267517673,-1075.35,0.00016438,2]
[406896995,1772267517682,-5780.22,0.00016438,2]
[406896996,1772267517692,-1052.35,0.00016438,2]
[406896997,1772267517701,-1604.1,0.00016438,2]
[406896998,1772267517711,-617.93,0.00016438,2]
[406896999,1772267517720,-1438.35,0.00016438,2]
[406897000,1772267517729,-500.0,0.00016438,2]
[406897001,1772267517739,-500.0,0.00016438,2]
[406897002,1772267517750,-1671.97,0.00016438,2]
[406897003,1772267517760,-500.0,0.00016438,2]
[406897004,1772267517770,-500.0,0.00016438,2]
[406897005,1772267517779,-566.35,0.00016438,2]
[406897006,1772267517789,-695.06,0.00016438,2]
[406897007,1772267517799,-260.98525928,0.00016438,2]
[406897008,1772267517808,-692.56,0.00016438,2]
[406897009,1772267517817,-1703.31,0.00016438,2]
[406897010,1772267517827,-1091.8,0.00016438,2]
[406897011,1772267517836,-526.21,0.00016438,2]
[406897012,1772267517846,-1946.78,0.00016438,2]
[406897013,1772267517856,-1093.05,0.00016438,2]
[406897014,1772267517866,-522.9,0.00016438,2]
[406897015,1772267518015,-1010.99,0.00016438,2]
[406897016,1772267518025,-597.64,0.00016438,2]
[406897017,1772267518035,-632.06,0.00016438,2]
[406897018,1772267518046,-1404.24,0.00016438,2]
[406897019,1772267518056,-3447.77,0.00016438,2]
[406897020,1772267518066,-500.0,0.00016438,2]
[406897021,1772267518076,-592.02,0.00016438,2]
[406897022,1772267518085,-500.0,0.00016438,2]
[406897023,1772267518095,-500.0,0.00016438,2]
[406897024,1772267518105,-1639.95,0.00016438,2]
[406897025,1772267518115,-500.0,0.00016438,2]
[406897026,1772267518125,-766.57,0.00016438,2]
[406897027,1772267518135,-2199.16,0.00016438,2]
[406897028,1772267518147,-500.0,0.00016438,2]
[406897029,1772267518156,-515.11,0.00016438,2]
[406897030,1772267518166,-1033.14,0.00016438,2]
[406897031,1772267518176,-1309.19,0.00016438,2]
[406897032,1772267518187,-1688.18,0.00016438,2]
[406897033,1772267518197,-3009.71,0.00016438,2]
[406897034,1772267518207,-1567.57,0.00016438,2]
[406897035,1772267518217,-500.0,0.00016438,2]
[406897036,1772267518227,-1039.64,0.00016438,2]
[406897037,1772267518236,-500.0,0.00016438,2]
[406897038,1772267518246,-578.85,0.00016438,2]
[406897039,1772267518256,-500.0,0.00016438,2]
[406897040,1772267518267,-2382.93,0.00016438,2]
[406897041,1772267518276,-2151.2,0.00016438,2]
[406897042,1772267518285,-1096.15,0.00016438,2]
[406897043,1772267518295,-683.72,0.00016438,2]
[406897044,1772267518304,-832.49,0.00016438,2]
[406897045,1772267518314,-692.6,0.00016438,2]
[406897046,1772267518323,-500.0,0.00016438,2]
[406897047,1772267518333,-3399.35,0.00016438,2]
[406897048,1772267518343,-865.62,0.00016438,2]
[406897049,1772267518353,-929.25,0.00016438,2]
[406897050,1772267518363,-856.18,0.00016438,2]
[406897051,1772267518373,-1271.22,0.00016438,2]
[406897052,1772267518383,-1063.54,0.00016438,2]
[406897053,1772267518393,-806.70631194,0.00016438,2]
[406897054,1772267518402,-1318.72,0.00016438,2]
[406897055,1772267518412,-705.79,0.00016438,2]
[406897056,1772267518421,-2424.89,0.00016438,2]
[406897057,1772267518431,-1446.29,0.00016438,2]
[406897058,1772267518441,-500.0,0.00016438,2]
[406897059,1772267518451,-2361.52,0.00016438,2]
[406897060,1772267518461,-500.0,0.00016438,2]
[406897061,1772267518471,-4592.95,0.00016438,2]
[406897062,1772267518482,-2215.2,0.00016438,2]
[406897063,1772267518492,-1435.8,0.00016438,2]
[406897064,1772267518501,-1576.84,0.00016438,2]
[406897065,1772267518512,-2561.33,0.00016438,2]
[406897066,1772267518522,-1085.51,0.00016438,2]
[406897067,1772267518532,-500.0,0.00016438,2]
[406897068,1772267518543,-500.0,0.00016438,2]
[406897069,1772267518553,-717.42,0.00016438,2]
[406897070,1772267518563,-292.48019604,0.00016438,2]
[406897071,1772267518573,-1108.2,0.00016438,2]
[406897072,1772267518585,-500.0,0.00016438,2]
[406897073,1772267518595,-500.0,0.00016438,2]
[406897074,1772267518605,-3100.42,0.00016438,2]
[406897075,1772267518615,-1341.93,0.00016438,2]
[406897076,1772267518625,-1305.67,0.00016438,2]
[406897077,1772267518634,-500.0,0.00016438,2]
[406897078,1772267518643,-1472.57,0.00016438,2]
[406897079,1772267518653,-561.98,0.00016438,2]
[406897080,1772267518663,-3197.66,0.00016438,2]
[406897081,1772267518673,-615.34,0.00016438,2]
[406897082,1772267518683,-699.96,0.00016438,2]
[406897083,1772267518693,-500.0,0.00016438,2]
[406897084,1772267518703,-1020.13,0.00016438,2]
[406897085,1772267518712,-500.0,0.00016438,2]
[406897086,1772267518722,-596.63,0.00016438,2]
[406897087,1772267518732,-500.0,0.00016438,2]
[406897088,1772267518741,-1033.36,0.00016438,2]
[406897089,1772267518751,-500.0,0.00016438,2]
[406897090,1772267518761,-500.0,0.00016438,2]
[406897091,1772267518771,-2312.35,0.00016438,2]
[406897092,1772267518781,-955.01,0.00016438,2]
[406897093,1772267518791,-806.51,0.00016438,2]
[406897094,1772267518800,-1522.66,0.00016438,2]
[406897095,1772267518811,-500.0,0.00016438,2]
[406897096,1772267518821,-867.0,0.00016438,2]
[406897097,1772267518831,-7146.16,0.00016438,2]
[406897098,1772267518840,-500.0,0.00016438,2]
[406897099,1772267518850,-500.0,0.00016438,2]
[406897100,1772267518859,-1028.35,0.00016438,2]
[406897101,1772267518869,-500.0,0.00016438,2]
[406897102,1772267518879,-1008.96,0.00016438,2]
[406897103,1772267518889,-500.0,0.00016438,2]
[406897104,1772267518898,-1352.59,0.00016438,2]
[406897105,1772267518908,-506.03,0.00016438,2]
[406897106,1772267518917,-541.97208651,0.00016438,2]
[406897107,1772267518928,-500.0,0.00016438,2]
[406897108,1772267518938,-500.0,0.00016438,2]
[406897109,1772267518947,-500.0,0.00016438,2]
[406897110,1772267518957,-764.41,0.00016438,2]
[406897111,1772267518967,-500.0,0.00016438,2]
[406897112,1772267518977,-1761.81,0.00016438,2]
[406897113,1772267518986,-2215.04,0.00016438,2]
[406897114,1772267518996,-517.41,0.00016438,2]
[406897115,1772267519005,-517.59,0.00016438,2]
[406897116,1772267519015,-500.0,0.00016438,2]
[406897117,1772267519025,-500.0,0.00016438,2]
[406897118,1772267519035,-963.32,0.00016438,2]
[406897119,1772267519045,-700.0,0.00016438,2]
[406897120,1772267519055,-899.12,0.00016438,2]
[406897121,1772267519064,-1300.35,0.00016438,2]
[406897122,1772267519074,-5319.48,0.00016438,2]
[406897123,1772267519083,-1252.77,0.00016438,2]
[406897124,1772267519093,-587.74,0.00016438,2]
[406897125,1772267519103,-1166.63,0.00016438,2]
[406897126,1772267519113,-899.07,0.00016438,2]
[406897127,1772267519122,-2895.24,0.00016438,2]
[406897128,1772267519133,-1068.48,0.00016438,2]
[406897129,1772267519143,-968.49,0.00016438,2]
[406897130,1772267519155,-500.0,0.00016438,2]
[406897131,1772267519164,-2416.57,0.00016438,2]
[406897132,1772267519174,-1587.58,0.00016438,2]
[406897133,1772267519185,-647.96,0.00016438,2]
[406897134,1772267519195,-8070.28,0.00016438,2]
[406897135,1772267519205,-731.15,0.00016438,2]
[406897136,1772267519214,-500.0,0.00016438,2]
[406897137,1772267519225,-500.0,0.00016438,2]
[406897138,1772267519235,-1997.06,0.00016438,2]
[406897139,1772267519245,-3186.98,0.00016438,2]
[406897140,1772267519255,-3896.0,0.00016438,2]
[406897141,1772267519265,-500.0,0.00016438,2]
[406897142,1772267519275,-500.0,0.00016438,2]
[406897143,1772267519285,-527.94,0.00016438,2]
[406897144,1772267519294,-989.6,0.00016438,2]
[406897145,1772267519303,-7025.66,0.00016438,2]
[406897146,1772267519313,-500.0,0.00016438,2]
[406897147,1772267519323,-682.38,0.00016438,2]
[406897148,1772267519332,-659.28,0.00016438,2]
[406897149,1772267519342,-728.78,0.00016438,2]
[406897150,1772267519351,-898.93,0.00016438,2]
[406897151,1772267519360,-793.11,0.00016438,2]
[406897152,1772267519370,-1706.3,0.00016438,2]
[406897153,1772267519380,-659.85,0.00016438,2]
[406897154,1772267519390,-1134.79,0.00016438,2]
[406897155,1772267519400,-11125.25,0.00016438,2]
[406897156,1772267519410,-7153.51,0.00016438,2]
[406897157,1772267519419,-648.35,0.00016438,2]
[406897158,1772267519429,-5078.3,0.00016438,2]
[406897159,1772267519438,-683.43,0.00016438,2]
[406897160,1772267519448,-2723.16,0.00016438,2]
[406897161,1772267519457,-500.0,0.00016438,2]
[406897162,1772267519467,-4724.28,0.00016438,2]
[406897163,1772267519476,-500.0,0.00016438,2]
[406897164,1772267519485,-739.63,0.00016438,2]
[406897165,1772267519495,-500.0,0.00016438,2]
[406897166,1772267519505,-500.0,0.00016438,2]
[406897167,1772267519517,-4297.64,0.00016438,2]
[406897168,1772267519527,-737.38,0.00016438,2]
[406897169,1772267519537,-2549.64,0.00016438,2]
[406897170,1772267519547,-500.0,0.00016438,2]
[406897171,1772267519557,-1171.08,0.00016438,2]
[406897172,1772267519566,-2640.18,0.00016438,2]
[406897173,1772267519576,-7472.22,0.00016438,2]
[406897174,1772267519587,-500.0,0.00016438,2]
[406897175,1772267519596,-530.37,0.00016438,2]
[406897176,1772267519606,-1765.65,0.00016438,2]
[406897177,1772267519616,-500.0,0.00016438,2]
[406897178,1772267519626,-500.0,0.00016438,2]
[406897179,1772267519636,-1444.95,0.00016438,2]
[406897180,1772267519646,-4088.91,0.00016438,2]
[406897181,1772267519657,-2445.15,0.00016438,2]
[406897182,1772267519667,-2774.65,0.00016438,2]
[406897183,1772267519677,-500.0,0.00016438,2]
[406897184,1772267519687,-3783.55,0.00016438,2]
[406897185,1772267519697,-1333.68,0.00016438,2]
[406897186,1772267519707,-500.0,0.00016438,2]
[406897187,1772267519716,-14153.91,0.00016438,2]
[406897188,1772267519726,-500.0,0.00016438,2]
[406897189,1772267519735,-500.0,0.00016438,2]
[406897190,1772267519745,-3218.57,0.00016438,2]
[406897191,1772267519755,-2092.55,0.00016438,2]
[406897192,1772267519767,-500.0,0.00016438,2]
[406897193,1772267519777,-2893.22,0.00016438,2]
[406897194,1772267519787,-2259.28,0.00016438,2]
[406897195,1772267519796,-155.42877912,0.00016438,2]
[406897196,1772267519806,-1798.11,0.00016438,2]
[406897197,1772267519816,-638.76362966,0.00016438,2]
[406897198,1772267519826,-540.91,0.00016438,2]
[406897199,1772267519835,-500.0,0.00016438,2]
[406897200,1772267519845,-500.0,0.00016438,2]
[406897201,1772267519855,-16752.77,0.00016438,2]
[406897202,1772267519864,-163.27826502,0.00016438,2]
[406897203,1772267519874,-500.97,0.00016438,2]
[406897204,1772267519884,-526.47,0.00016438,2]
[406897205,1772267519894,-500.0,0.00016438,2]
[406897206,1772267519904,-500.0,0.00016438,2]
[406897207,1772267519914,-1638.09,0.00016438,2]
[406897208,1772267519923,-4470.34,0.00016438,2]
[406897209,1772267519933,-493.3862651,0.00016438,2]
[406897210,1772267519943,-2160.15,0.00016438,2]
[406897211,1772267519953,-500.0,0.00016438,2]
[406897212,1772267519963,-611.61,0.00016438,2]
[406897213,1772267519972,-587.54,0.00016438,2]
[406897214,1772267519983,-500.0,0.00016438,2]
[406897215,1772267519992,-679.97,0.00016438,2]
[406897216,1772267520003,-62454.68,0.00016438,2]
[406897217,1772267520013,-500.0,0.00016438,2]
[406897218,1772267520023,-4931.54,0.00016438,2]
[406897219,1772267520033,-691.25,0.00016438,2]
[406897220,1772267520043,-2603.07,0.00016438,2]
[406897221,1772267520052,-7026.09,0.00016438,2]
[406897222,1772267520062,-668.0,0.00016438,2]
[406897223,1772267520071,-1193.68,0.00016438,2]
[406897224,1772267520082,-635.83,0.00016438,2]
[406897225,1772267520091,-500.0,0.00016438,2]
[406897226,1772267520102,-500.0,0.00016438,2]
[406897227,1772267520111,-1018.54,0.00016438,2]
[406897228,1772267520121,-500.0,0.00016438,2]
[406897229,1772267520131,-8795.12,0.00016438,2]
[406897230,1772267520141,-500.0,0.00016438,2]
[406897231,1772267520155,-511.19,0.00016438,2]
[406897232,1772267520165,-500.0,0.00016438,2]
[406897233,1772267520175,-2059.67,0.00016438,2]
[406897234,1772267520184,-583.85654019,0.00016438,2]
[406897235,1772267520194,-2791.04,0.00016438,2]
[406897236,1772267520204,-500.0,0.00016438,2]
[406897237,1772267520215,-4120.89,0.00016438,2]
[406897238,1772267520224,-500.0,0.00016438,2]
[406897239,1772267520234,-738.7,0.00016438,2]
[406897240,1772267520244,-500.0,0.00016438,2]
[406897241,1772267520254,-858.19,0.00016438,2]
[406897242,1772267520265,-1094.77,0.00016438,2]
[406897243,1772267520274,-1558.46,0.00016438,2]
[406897244,1772267520283,-3104.3,0.00016438,2]
[406897245,1772267520292,-500.0,0.00016438,2]
[406897246,1772267520302,-41294.65,0.00016438,2]
[406897247,1772267520312,-527.34372968,0.00016438,2]
[406897248,1772267520322,-165.70229616,0.00016438,2]
[406897249,1772267520332,-500.0,0.00016438,2]
[406897250,1772267520341,-4305.9,0.00016438,2]
[406897251,1772267520351,-1079.08,0.00016438,2]
[406897252,1772267520361,-1590.25,0.00016438,2]
[406897253,1772267520370,-17553.64,0.00016438,2]
[406897254,1772267520380,-829.59,0.00016438,2]
[406897255,1772267520533,-836.94,0.00016438,2]
[406897256,1772267520544,-2501.06,0.00016438,2]
[406897257,1772267520555,-624.89,0.00016438,2]
[406897258,1772267520564,-500.0,0.00016438,2]
[406897259,1772267520574,-500.0,0.00016438,2]
[406897260,1772267520584,-587.66,0.00016438,2]
[406897261,1772267520593,-612.52,0.00016438,2]
[406897262,1772267520603,-798.52,0.00016438,2]
[406897263,1772267520612,-920.96,0.00016438,2]
[406897264,1772267520622,-833.23,0.00016438,2]
[406897265,1772267520632,-502.1,0.00016438,2]
[406897266,1772267520642,-1661.19,0.00016438,2]
[406897267,1772267520651,-884.15,0.00016438,2]
[406897268,1772267520661,-997.87,0.00016438,2]
[406897269,1772267520671,-2806.98,0.00016438,2]
[406897270,1772267520681,-714.12,0.00016438,2]
[406897271,1772267520691,-3389.85,0.00016438,2]
[406897272,1772267520701,-500.0,0.00016438,2]
[406897273,1772267520710,-500.0,0.00016438,2]
[406897274,1772267520720,-736.98,0.00016438,2]
[406897275,1772267520729,-3040.54,0.00016438,2]
[406897276,1772267520739,-500.0,0.00016438,2]
[406897277,1772267520748,-1624.77,0.00016438,2]
[406897278,1772267520758,-8862.41,0.00016438,2]
[406897279,1772267520767,-21682.96,0.00016438,2]
[406897280,1772267520777,-1097.26,0.00016438,2]
[406897281,1772267520786,-500.0,0.00016438,2]
[406897282,1772267520796,-7502.8,0.00016438,2]
[406897283,1772267520805,-500.0,0.00016438,2]
[406897284,1772267520815,-565.02,0.00016438,2]
[406897285,1772267520824,-6625.37,0.00016438,2]
[406897286,1772267520834,-500.0,0.00016438,2]
[406897287,1772267520843,-2462.23,0.00016438,2]
[406897288,1772267520853,-1430.4,0.00016438,2]
[406897289,1772267520863,-1591.21,0.00016438,2]
[406897290,1772267520872,-1097.85,0.00016438,2]
[406897291,1772267520883,-941.74,0.00016438,2]
[406897292,1772267520893,-2991.59,0.00016438,2]
[406897293,1772267520903,-1208.52,0.00016438,2]
[406897294,1772267520912,-1852.72,0.00016438,2]
[406897295,1772267520922,-500.0,0.00016438,2]
[406897296,1772267520931,-2739.1,0.00016438,2]
[406897297,1772267520941,-500.0,0.00016438,2]
[406897298,1772267520950,-3806.49,0.00016438,2]
[406897299,1772267520960,-7703.07,0.00016438,2]
[406897300,1772267520970,-515.24,0.00016438,2]
[406897301,1772267520980,-500.0,0.00016438,2]
[406897302,1772267520990,-500.0,0.00016438,2]
[406897303,1772267520999,-1269.75,0.00016438,2]
[406897304,1772267521009,-2065.59,0.00016438,2]
[406897305,1772267521019,-500.0,0.00016438,2]
[406897306,1772267521028,-1723.78,0.00016438,2]
[406897307,1772267521038,-2115.78,0.00016438,2]
[406897308,1772267521047,-500.0,0.00016438,2]
[406897309,1772267521057,-1897.54,0.00016438,2]
[406897310,1772267521067,-3092.48,0.00016438,2]
[406897311,1772267521077,-500.0,0.00016438,2]
[406897312,1772267521087,-922.16,0.00016438,2]
[406897313,1772267521097,-1034.45,0.00016438,2]
[406897314,1772267521106,-4771.37,0.00016438,2]
[406897315,1772267521116,-500.0,0.00016438,2]
[406897316,1772267521125,-1231.85,0.00016438,2]
[406897317,1772267521139,-500.0,0.00016438,2]
[406897318,1772267521148,-150.0,0.00016438,2]
[406897319,1772267521157,-151.0,0.00016438,2]
[406897320,1772267521167,-151.0,0.00016438,2]
[406897321,1772267521178,-151.0,0.00016438,2]
[406897322,1772267521188,-151.0,0.00016438,2]
[406897323,1772267521197,-151.0,0.00016438,2]
[406897324,1772267521206,-157.708512,0.00016438,2]
[406897325,1772267521216,-1433.200288,0.00016438,2]
[406897326,1772267521225,-1433.200288,0.00016438,2]
[406897327,1772267521236,-1433.200288,0.00016438,2]
[406897328,1772267521246,-1433.200288,0.00016438,2]
[406897329,1772267521255,-1433.200288,0.00016438,2]
[406897330,1772267521265,-1433.200288,0.00016438,2]
[406897331,1772267521275,-1433.200288,0.00016438,2]
[406897332,1772267521284,-1433.200288,0.00016438,2]
[406897333,1772267521293,-1433.200288,0.00016438,2]
[406897334,1772267521303,-1433.200288,0.00016438,2]
[406897335,1772267521313,-1433.200288,0.00016438,2]
[406897336,1772267521322,-1433.200288,0.00016438,2]
[406897337,1772267521332,-1433.200288,0.00016438,2]
[406897338,1772267521342,-1433.200288,0.00016438,2]
[406897339,1772267521351,-1433.200288,0.00016438,2]
[406897340,1772267521361,-1433.200288,0.00016438,2]
[406897341,1772267521371,-1433.200288,0.00016438,2]
[406897342,1772267521380,-1433.200288,0.00016438,2]
[406897343,1772267521391,-1433.200288,0.00016438,2]
[406897344,1772267521400,-1433.200285,0.00016438,2]
[406897345,1772267521409,-169.403893,0.00016438,2]
[406897346,1772267521419,-151.0,0.00016438,2]
[406897347,1772267521429,-151.0,0.00016438,2]
[406897348,1772267521439,-200.0,0.00016438,3]
[406897349,1772267521448,-200.0,0.00016438,3]
[406897350,1772267521458,-200.0,0.00016438,3]
[406897351,1772267521469,-200.0,0.00016438,3]
[406897352,1772267521479,-200.0,0.00016438,3]
[406897353,1772267521489,-200.0,0.00016438,3]
[406897354,1772267521500,-151.0,0.00016438,2]
[406897355,1772267521515,-151.0,0.00016438,2]
[406897356,1772267521525,-151.0,0.00016438,2]
[406897357,1772267521535,-151.0,0.00016438,2]
[406897358,1772267521546,-151.0,0.00016438,2]
[406897359,1772267521557,-151.0,0.00016438,2]
[406897360,1772267521569,-151.0,0.00016438,2]
[406897361,1772267521578,-151.0,0.00016438,2]
[406897362,1772267521588,-151.0,0.00016438,2]
[406897363,1772267521598,-151.0,0.00016438,2]
[406897364,1772267521608,-151.0,0.00016438,2]
[406897365,1772267521617,-151.0,0.00016438,2]
[406897366,1772267521627,-151.0,0.00016438,2]
[406897367,1772267521637,-151.0,0.00016438,2]
[406897368,1772267521648,-294.718028,0.00016438,2]
[406897369,1772267521657,-21711.04221622,0.00016488,2]
[406897370,1772267521667,-939.8342441,0.00016582,11]
[406897371,1772267521677,-161.62437747,0.00016628,2]
[406897372,1772267521687,-487.837063,0.00016701,7]
[406897373,1772267521696,-324.3,0.00016712,2]
[406897374,1772267521706,-408.58634753,0.00016712,2]
[406897375,1772267521715,-607.58,0.00016712,2]
[406897376,1772267521724,-500.0,0.00016712,2]
[406897377,1772267521734,-980.59,0.00016712,2]
[406897378,1772267521744,-500.0,0.00016712,2]
[406897379,1772267521753,-500.0,0.00016712,2]
[406897380,1772267521767,-500.0,0.00016712,2]
[406897381,1772267521777,-1353.85,0.00016712,2]
[406897382,1772267521787,-1322.07,0.00016712,2]
[406897383,1772267521797,-692.0,0.00016712,2]
[406897384,1772267521807,-564.22,0.00016712,2]
[406897385,1772267521816,-520.93,0.00016712,2]
[406897386,1772267521826,-500.0,0.00016712,2]
[406897387,1772267521836,-500.0,0.00016712,2]
[406897388,1772267521845,-500.0,0.00016712,2]
[406897389,1772267521855,-1711.44,0.00016712,2]
[406897390,1772267521864,-2726.35,0.00016712,2]
[406897391,1772267521874,-500.0,0.00016712,2]
[406897392,1772267521883,-1744.45,0.00016712,2]
[406897393,1772267521892,-500.0,0.00016712,2]
[406897394,1772267521902,-1041.8,0.00016712,2]
[406897395,1772267521912,-737.4,0.00016712,2]
[406897396,1772267521921,-2718.46,0.00016712,2]
[406897397,1772267521930,-194.08096999,0.00016712,2]
[406897398,1772267521939,-770.65,0.00016712,2]
[406897399,1772267521949,-902.4,0.00016712,2]
[406897400,1772267521958,-989.47,0.00016712,2]
[406897401,1772267521967,-558.27,0.00016712,2]
[406897402,1772267521977,-603.96,0.00016712,2]
[406897403,1772267521986,-500.58,0.00016712,2]
[406897404,1772267521996,-2062.12,0.00016712,2]
[406897405,1772267522005,-719.5,0.00016712,2]
[406897406,1772267522016,-525.56,0.00016712,2]
[406897407,1772267522025,-597.20878881,0.00016712,2]
[406897408,1772267522035,-500.0,0.00016712,2]
[406897409,1772267522044,-500.0,0.00016712,2]
[406897410,1772267522054,-546.89,0.00016712,2]
[406897411,1772267522063,-1727.31,0.00016712,2]
[406897412,1772267522072,-500.0,0.00016712,2]
[406897413,1772267522082,-514.02,0.00016712,2]
[406897414,1772267522091,-860.84,0.00016712,2]
[406897415,1772267522101,-955.26,0.00016712,2]
[406897416,1772267522110,-500.0,0.00016712,2]
[406897417,1772267522119,-725.73,0.00016712,2]
[406897418,1772267522129,-914.38,0.00016712,2]
[406897419,1772267522139,-1116.21,0.00016712,2]
[406897420,1772267522151,-579.95,0.00016712,2]
[406897421,1772267522160,-500.0,0.00016712,2]
[406897422,1772267522170,-1326.22,0.00016712,2]
[406897423,1772267522181,-1036.26,0.00016712,2]
[406897424,1772267522191,-500.0,0.00016712,2]
[406897425,1772267522201,-936.85,0.00016712,2]
[406897426,1772267522210,-500.0,0.00016712,2]
[406897427,1772267522221,-547.18,0.00016712,2]
[406897428,1772267522232,-1250.68,0.00016712,2]
[406897429,1772267522241,-1196.3,0.00016712,2]
[406897430,1772267522251,-1024.08,0.00016712,2]
[406897431,1772267522264,-898.6,0.00016712,2]
[406897432,1772267522274,-500.0,0.00016712,2]
[406897433,1772267522284,-500.0,0.00016712,2]
[406897434,1772267522295,-609.4,0.00016712,2]
[406897435,1772267522307,-500.0,0.00016712,2]
[406897436,1772267522317,-1312.05,0.00016712,2]
[406897437,1772267522326,-937.86,0.00016712,2]
[406897438,1772267522336,-651.8,0.00016712,2]
[406897439,1772267522347,-500.0,0.00016712,2]
[406897440,1772267522358,-500.0,0.00016712,2]
[406897441,1772267522368,-500.0,0.00016712,2]
[406897442,1772267522378,-517.11,0.00016712,2]
[406897443,1772267522388,-500.0,0.00016712,2]
[406897444,1772267522399,-500.0,0.00016712,2]
[406897445,1772267522409,-500.0,0.00016712,2]
[406897446,1772267522418,-1446.65,0.00016712,2]
[406897447,1772267522428,-500.0,0.00016712,2]
[406897448,1772267522437,-1733.53,0.00016712,2]
[406897449,1772267522447,-1436.12,0.00016712,2]
[406897450,1772267522458,-685.31,0.00016712,2]
[406897451,1772267522468,-580.66,0.00016712,2]
[406897452,1772267522479,-571.4,0.00016712,2]
[406897453,1772267522489,-864.92,0.00016712,2]
[406897454,1772267522499,-846.6,0.00016712,2]
[406897455,1772267522513,-1593.78,0.00016712,2]
[406897456,1772267522526,-750.44,0.00016712,2]
[406897457,1772267522537,-472.35159801,0.00016712,2]
[406897458,1772267522548,-500.0,0.00016712,2]
[406897459,1772267522559,-1521.42,0.00016712,2]
[406897460,1772267522569,-1247.19,0.00016712,2]
[406897461,1772267522579,-705.82,0.00016712,2]
[406897462,1772267522589,-500.0,0.00016712,2]
[406897463,1772267522600,-529.62,0.00016712,2]
[406897464,1772267522611,-500.0,0.00016712,2]
[406897465,1772267522621,-745.32,0.00016712,2]
[406897466,1772267522630,-1605.01,0.00016712,2]
[406897467,1772267522640,-500.0,0.00016712,2]
[406897468,1772267522650,-1610.8,0.00016712,2]